Workbook

Sheet 附件5
A1: 附件5：
A2: 2024年末江门市政府债务余额预测数
J3: 单位：万元
A4: 项 目 | B4: 全市 | C4: 市本级 | D4: 蓬江区 | E4: 江海区 | F4: 新会区 | G4: 台山市 | H4: 开平市 | I4: 鹤山市 | J4: 恩平市
A5: 一、2023年末债务余额 | B5: =B6+B7 -> 10,876,910 | C5: =C6+C7 -> 1,540,265 | D5: =D6+D7 -> 1,429,722 | E5: 833,808 | F5: 2,464,914 | G5: 1,589,931 | H5: 1,297,736 | I5: 1,160,588 | J5: 559,946
A6: （1）一般债务余额 | B6: =SUM(C6:J6) -> 3,185,501 | C6: 727,008 | D6: 236,748 | E6: 53,260 | F6: 1,062,790 | G6: 247,717 | H6: 520,867 | I6: 209,790 | J6: 127,323
A7: （2）专项债务余额 | B7: =SUM(C7:J7) -> 7,691,409 | C7: 813,258 | D7: 1,192,974 | E7: 780,548 | F7: 1,402,124 | G7: 1,342,214 | H7: 776,869 | I7: 950,798 | J7: 432,623
A8: 二、2024年再融资债券 | B8: =B9+B10 -> 261,300 | C8: =C9+C10 -> 2,577 | D8: =D9+D10 -> 35,668 | E8: 0 | F8: 51,611 | G8: 38,885 | H8: 76,543 | I8: 6,259 | J8: 49,757
A9: （1）一般债务 | B9: =SUM(C9:J9) -> 195,351 | C9: 2,577 | D9: 1,995 | E9: 0 | F9: 46,611 | G9: 21,484 | H9: 76,543 | I9: 500 | J9: 45,641
A10: （2）专项债务 | B10: =SUM(C10:J10) -> 65,949 | C10: 0 | D10: 33,673 | E10: 0 | F10: 5,000 | G10: 17,401 | H10: 0 | I10: 5,759 | J10: 4,116
A11: 三、2024年新增债券 | B11: =B12+B13 -> 1,670,000 | C11: =C12+C13 -> 70,000 | D11: =D12+D13 -> 130,000 | E11: 55,000 | F11: 370,000 | G11: 340,000 | H11: 270,000 | I11: 230,000 | J11: 205,000
A12: （1）一般债务 | B12: =SUM(C12:J12) -> 0 | C12: 0 | D12: 0 | E12: 0 | F12: 0 | G12: 0 | H12: 0 | I12: 0 | J12: 0
A13: （2）专项债务 | B13: =SUM(C13:J13) -> 1,670,000 | C13: 70,000 | D13: 130,000 | E13: 55,000 | F13: 370,000 | G13: 340,000 | H13: 270,000 | I13: 230,000 | J13: 205,000
A14: 四、政府债券还本 | B14: =B15+B16 -> 275,117 | C14: =C15+C16 -> 4,687 | D14: =D15+D16 -> 36,868 | E14: 0 | F14: 56,611 | G14: 40,134 | H14: 79,000 | I14: 6,460 | J14: 51,357
A15: （1）偿还一般债务 | B15: =SUM(C15:J15) -> 201,034 | C15: 4,687 | D15: 1,995 | E15: 0 | F15: 46,611 | G15: 21,634 | H15: 78,500 | I15: 500 | J15: 47,107
A16: （2）偿还专项债务 | B16: =SUM(C16:J16) -> 74,083 | C16: 0 | D16: 34,873 | E16: 0 | F16: 10,000 | G16: 18,500 | H16: 500 | I16: 5,960 | J16: 4,250
A17: 五、截止2024年末债务余额预测值 （一+二＋三-四） | B17: =SUM(B18:B19) -> 12,533,093 | C17: =SUM(C18:C19) -> 1,608,155 | D17: =SUM(D18:D19) -> 1,558,522 | E17: 888,808 | F17: 2,829,914 | G17: 1,928,682 | H17: 1,565,279 | I17: 1,390,387 | J17: 763,346
A18: （1）一般债务余额 | B18: =B6+B9+B12-B15 -> 3,179,818 | C18: =C6+C9+C12-C15 -> 724,898 | D18: =D6+D9+D12-D15 -> 236,748 | E18: 53,260 | F18: 1,062,790 | G18: 247,567 | H18: 518,910 | I18: 209,790 | J18: 125,857
A19: （2）专项债务余额 | B19: =B7+B10+B13-B16 -> 9,353,275 | C19: =C7+C10+C13-C16 -> 883,258 | D19: =D7+D10+D13-D16 -> 1,321,774 | E19: 835,548 | F19: 1,767,124 | G19: 1,681,115 | H19: 1,046,369 | I19: 1,180,597 | J19: 637,489
A20: 备注：本预测数据未考虑非政府债券形式政府债务还款情况（我市政府债券形式的政府债务占比达99%以上）。
